[Event "36th Balaton Open A 2018"]
[Site "Balatonlelle"]
[Date "2018.06.15"]
[Round "4"]
[White "Tancsa, Tamas"]
[Black "Hogea, Calin"]
[Result "1-0"]
[ECO "C40"]
[WhiteElo "1965"]
[BlackElo "2112"]
[Annotator "NA"]
[PlyCount "28"]
[EventDate "2018.06.12"]
[EventType "swiss"]
[EventCountry "HUN"]
[SourceTitle "playchess.com"]
[Source "ChessBase"]
[SourceQuality "1"]
[TimeControl "40/5400+30:1800+30"]

1. e4 {[%emt 0:00:03]} e5 {[%emt 0:02:45]} 2. Nf3 {[%emt 0:00:33]} Qe7 {[%emt 0:00:05]} 3. Bc4 {[%emt 0:00:57]} d6 {[%emt 0:00:20]} 4. O-O {[%emt 0:00:33]} g6 {[%emt 0:00:42]} 5. d4 {[%emt 0:00:49]} c6 {[%emt 0:00:25]} 6. Ng5 {[%emt 0:05:35]} Nh6 {[%emt 0:03:29]} 7. f4 {[%emt 0:01:12]} f6 {[%emt 0:01:05]} 8. Nf3 {[%emt 0:00:27]} Bg7 {[%emt 0:15:38]} 9. fxe5 {[%emt 0:07:15]} dxe5 {[%emt 0:00:17]} 10. dxe5 {[%emt 0:01:06]} fxe5 {[%emt 0:04:40]} 11. Bg5 {[%emt 0:01:15]} Bf6 {[%emt 0:12:01]} 12. Bxf6 {[%emt 0:04:57]} Qxf6 {[%emt 0:00:06]} 13. Qd2 {[%emt 0:00:26]} Ng4 {[%emt 0:05:21]} 14. Ng5 {[%emt 0:00:39]} Qd8 1-0

[Event "36th Balaton Open A 2018"]
[Site "Balatonlelle"]
[Date "2018.06.15"]
[Round "4"]
[White "Kaibinger, Karoly"]
[Black "Suta, Andraz"]
[Result "0-1"]
[ECO "C99"]
[WhiteElo "1804"]
[BlackElo "2239"]
[Annotator "NA"]
[PlyCount "84"]
[EventDate "2018.06.12"]
[EventType "swiss"]
[EventCountry "HUN"]
[SourceTitle "playchess.com"]
[Source "ChessBase"]
[SourceQuality "1"]
[TimeControl "40/5400+30:1800+30"]

1. e4 {[%emt 0:00:09]} e5 {[%emt 0:00:40]} 2. Nf3 {[%emt 0:00:17]} Nc6 {[%emt 0:00:04]} 3. Bb5 {[%emt 0:00:31]} a6 {[%emt 0:00:46]} 4. Ba4 {[%emt 0:00:10]} Nf6 {[%emt 0:00:31]} 5. O-O {[%emt 0:00:42]} Be7 {[%emt 0:01:03]} 6. Re1 {[%emt 0:00:28]} b5 {[%emt 0:00:17]} 7. Bb3 {[%emt 0:00:14]} d6 {[%emt 0:00:39]} 8. c3 {[%emt 0:00:31]} O-O {[%emt 0:00:07]} 9. h3 {[%emt 0:03:29]} Na5 {[%emt 0:01:57]} 10. Bc2 {[%emt 0:00:18]} c5 {[%emt 0:00:10]} 11. d4 {[%emt 0:00:41]} Qc7 {[%emt 0:04:50]} 12. Nbd2 {[%emt 0:00:56]} cxd4 {[%emt 0:01:21]} 13. cxd4 {[%emt 0:00:17]} Bb7 {[%emt 0:00:13]} 14. Nf1 {[%emt 0:05:54]} Rac8 {[%emt 0:00:41]} 15. Bb1 {[%emt 0:04:11]} d5 {[%emt 0:20:14]} 16. Ng3 {[%emt 0:04:09]} dxe4 {[%emt 0:16:25]} 17. Nxe5 {[%emt 0:11:45]} Rfd8 {[%emt 0:06:40]} 18. Nf5 {[%emt 0:10:19]} Nc6 {[%emt 0:05:46]} 19. Bf4 {[%emt 0:09:17]} Nxe5 {[%emt 0:01:12]} 20. Nxe7+ {[%emt 0:03:32]} Qxe7 {[%emt 0:01:14]} 21. Bxe5 {[%emt 0:00:42]} h6 {[%emt 0:03:09]} 22. Qe2 {[%emt 0:06:30]} Qe6 {[%emt 0:04:11]} 23. Qe3 {[%emt 0:24:43]} Re8 {[%emt 0:04:53]} 24. Qg3 {[%emt 0:01:56]} Nh5 {[%emt 0:02:57]} 25. Qh4 {[%emt 0:01:33]} Nf6 {[%emt 0:00:18]} 26. Qg3 {[%emt 0:00:36]} Nh5 {[%emt 0:15:51]} 27. Qh4 {[%emt 0:00:51]} Qg6 {[%emt 0:03:56]} 28. f3 {[%emt 0:05:39]} f6 {[%emt 0:00:05]} 29. Bh2 {[%emt 0:00:38]} f5 {[%emt 0:00:04]} 30. fxe4 {[%emt 0:01:22]} Nf6 {[%emt 0:00:07]} 31. Be5 {[%emt 0:00:39]} Bxe4 {[%emt 0:02:20]} 32. Bxe4 {[%emt 0:00:20]} Nxe4 {[%emt 0:00:05]} 33. Rac1 {[%emt 0:00:28]} Ng5 {[%emt 0:00:58]} 34. Qg3 {[%emt 0:00:29]} Qf7 {[%emt 0:01:48]} 35. Rf1 {[%emt 0:00:49]} Ne4 {[%emt 0:00:16]} 36. Qe3 {[%emt 0:00:15]} Qd7 {[%emt 0:00:29]} 37. g4 {[%emt 0:00:18]} Rxc1 {[%emt 0:00:15]} 38. Rxc1 {[%emt 0:00:07]} Ng5 {[%emt 0:01:11]} 39. Qd3 {[%emt 0:01:33]} Rxe5 {[%emt 0:00:55]} 40. Qb3+ {[%emt 0:00:00]} Re6 {[%emt 0:00:27]} 41. Re1 {[%emt 0:00:17]} Qxd4+ {[%emt 0:02:30]} 42. Kf1 {[%emt 0:00:54]} Qc4+ {Rc1} 0-1

[Event "36th Balaton Open A 2018"]
[Site "Balatonlelle"]
[Date "2018.06.15"]
[Round "4"]
[White "Farkas, Otto Jr"]
[Black "Leszko, Bence"]
[Result "0-1"]
[ECO "B42"]
[WhiteElo "1744"]
[BlackElo "2096"]
[Annotator "NA"]
[PlyCount "68"]
[EventDate "2018.06.12"]
[EventType "swiss"]
[EventCountry "HUN"]
[SourceTitle "playchess.com"]
[Source "ChessBase"]
[SourceQuality "1"]
[TimeControl "40/5400+30:1800+30"]

1. e4 {[%emt 0:01:06]} c5 {[%emt 0:00:42]} 2. Nf3 {[%emt 0:00:07]} e6 {[%emt 0:00:06]} 3. d4 {[%emt 0:00:05]} cxd4 {[%emt 0:00:02]} 4. Nxd4 {[%emt 0:00:11]} a6 {[%emt 0:00:02]} 5. Bd3 {[%emt 0:00:08]} g6 {[%emt 0:00:05]} 6. O-O {[%emt 0:05:48]} Bg7 {[%emt 0:00:10]} 7. c3 {[%emt 0:01:53]} Ne7 {[%emt 0:02:11]} 8. Re1 {[%emt 0:00:48]} Nbc6 {[%emt 0:00:33]} 9. Bf1 {[%emt 0:00:38]} O-O {[%emt 0:00:33]} 10. Be3 {[%emt 0:00:09]} Qc7 {[%emt 0:01:17]} 11. Qd2 {[%emt 0:11:18]} d5 {[%emt 0:02:19]} 12. Nxc6 {[%emt 0:16:36]} Qxc6 {[%emt 0:01:32]} 13. Bd4 {[%emt 0:04:43]} e5 {[%emt 0:02:31]} 14. exd5 {[%emt 0:04:14]} Qd6 {[%emt 0:03:35]} 15. Be3 {[%emt 0:01:35]} Qxd5 {[%emt 0:00:28]} 16. Na3 {[%emt 0:02:09]} Qc6 {[%emt 0:01:59]} 17. Rad1 {[%emt 0:01:20]} Nf5 {[%emt 0:01:36]} 18. Nc4 {[%emt 0:02:16]} Be6 {[%emt 0:02:14]} 19. b3 {[%emt 0:05:56]} b5 {[%emt 0:02:04]} 20. Na5 {[%emt 0:04:59]} Qc7 {[%emt 0:00:36]} 21. b4 {[%emt 0:00:13]} Nxe3 {[%emt 0:00:44]} 22. fxe3 {[%emt 0:01:13]} Rfd8 {[%emt 0:00:34]} 23. Qc2 {[%emt 0:00:31]} Rxd1 {[%emt 0:06:25]} 24. Rxd1 {[%emt 0:00:10]} Rc8 {[%emt 0:00:01]} 25. c4 {[%emt 0:05:42]} bxc4 {[%emt 0:00:15]} 26. Rc1 {[%emt 0:02:15]} Qb6 {[%emt 0:01:56]} 27. Qd2 {[%emt 0:01:51]} Bh6 {[%emt 0:00:57]} 28. Kf2 {[%emt 0:00:27]} Rd8 {[%emt 0:00:28]} 29. Qc3 {[%emt 0:01:09]} Rd3 {[%emt 0:09:30]} 30. Bxd3 {[%emt 0:05:57]} Qxe3+ {[%emt 0:00:16]} 31. Kf1 {[%emt 0:00:04]} cxd3 {[%emt 0:00:51]} 32. Re1 {[%emt 0:01:25]} Qf4+ {[%emt 0:00:10]} 33. Kg1 {[%emt 0:00:05]} d2 {[%emt 0:00:14]} 34. Rd1 {[%emt 0:00:56]} Bg4 {[%emt 0:00:27]} 0-1

[Event "36th Balaton Open A 2018"]
[Site "Balatonlelle"]
[Date "2018.06.16"]
[Round "5"]
[White "Haszon, David"]
[Black "Trajber, Daniel"]
[Result "1-0"]
[ECO "B40"]
[WhiteElo "2246"]
[BlackElo "2022"]
[Annotator "NA"]
[PlyCount "47"]
[EventDate "2018.06.12"]
[EventType "swiss"]
[EventCountry "HUN"]
[SourceTitle "playchess.com"]
[Source "ChessBase"]
[SourceQuality "1"]
[TimeControl "40/5400+30:1800+30"]

1. e4 {[%emt 0:08:02]} c5 {[%emt 0:00:44]} 2. Nf3 {[%emt 0:00:07]} e6 {[%emt 0:00:33]} 3. b3 {[%emt 0:00:19]} Nf6 {[%emt 0:01:24]} 4. Nc3 {[%emt 0:04:50]} Nc6 {[%emt 0:03:13]} 5. Bb2 {[%emt 0:00:35]} a6 {[%emt 0:02:16]} 6. e5 {[%emt 0:05:11]} Ng4 {[%emt 0:03:27]} 7. Qe2 {[%emt 0:01:24]} Qc7 {[%emt 0:02:13]} 8. O-O-O {[%emt 0:00:47]} Be7 {[%emt 0:04:29]} 9. Re1 {[%emt 0:05:31]} h5 {[%emt 0:09:09]} 10. h3 {[%emt 0:01:41]} Nh6 {[%emt 0:01:51]} 11. g4 {[%emt 0:03:47]} h4 {[%emt 0:06:58]} 12. Ne4 {[%emt 0:09:28]} Qa5 {[%emt 0:08:55]} 13. Kb1 {[%emt 0:04:24]} O-O {[%emt 0:05:24]} 14. Nf6+ {[%emt 0:09:13]} gxf6 {[%emt 0:14:42]} 15. Qe3 {[%emt 0:01:27]} fxe5 {[%emt 0:09:27]} 16. Qxh6 {[%emt 0:00:57]} Nb4 {[%emt 0:05:05]} 17. Rxe5 {[%emt 0:01:56]} Qxa2+ {[%emt 0:03:11]} 18. Kc1 {[%emt 0:00:10]} f5 {[%emt 0:03:18]} 19. Qg6+ {[%emt 0:00:52]} Kh8 {[%emt 0:00:08]} 20. Rxf5+ {[%emt 0:02:12]} Qxb2+ {[%emt 0:00:31]} 21. Kxb2 {[%emt 0:00:09]} exf5 {[%emt 0:00:09]} 22. gxf5 {[%emt 0:05:22]} Bf6+ {[%emt 0:01:36]} 23. Kb1 {[%emt 0:00:10]} d5 {[%emt 0:03:06]} 24. Qh5+ {[%emt 0:00:40]} 1-0

[Event "36th Balaton Open A 2018"]
[Site "Balatonlelle"]
[Date "2018.06.16"]
[Round "5"]
[White "Terbe, Julianna"]
[Black "Nagy, Daniel"]
[Result "1/2-1/2"]
[ECO "B17"]
[WhiteElo "2242"]
[BlackElo "2312"]
[Annotator "NA"]
[PlyCount "70"]
[EventDate "2018.06.12"]
[EventType "swiss"]
[EventCountry "HUN"]
[SourceTitle "playchess.com"]
[Source "ChessBase"]
[SourceQuality "1"]
[TimeControl "40/5400+30:1800+30"]

1. e4 {[%emt 0:00:05]} c6 {[%emt 0:01:02]} 2. d4 {[%emt 0:00:13]} d5 {[%emt 0:00:05]} 3. Nc3 {[%emt 0:00:08]} dxe4 {[%emt 0:00:07]} 4. Nxe4 {[%emt 0:00:07]} Nd7 {[%emt 0:00:05]} 5. Nf3 {[%emt 0:00:27]} Ngf6 {[%emt 0:00:07]} 6. Nxf6+ {[%emt 0:00:24]} Nxf6 {[%emt 0:00:07]} 7. c3 {[%emt 0:00:05]} Bg4 {[%emt 0:01:51]} 8. h3 {[%emt 0:00:22]} Bh5 {[%emt 0:00:47]} 9. g4 {[%emt 0:00:19]} Bg6 {[%emt 0:00:24]} 10. Ne5 {[%emt 0:00:07]} Nd7 {[%emt 0:04:44]} 11. Nxg6 {[%emt 0:00:58]} hxg6 {[%emt 0:00:08]} 12. d5 {[%emt 0:00:35]} Nb6 {[%emt 0:26:50]} 13. dxc6 {[%emt 0:04:03]} Qxd1+ {[%emt 0:00:18]} 14. Kxd1 {[%emt 0:00:04]} bxc6 {[%emt 0:00:38]} 15. Kc2 {[%emt 0:03:24]} e6 {[%emt 0:06:17]} 16. Bg2 {[%emt 0:05:30]} Rc8 {[%emt 0:01:55]} 17. Be3 {[%emt 0:01:59]} Bd6 {[%emt 0:01:30]} 18. Rad1 {[%emt 0:14:18]} Ke7 {[%emt 0:01:23]} 19. Rd3 {[%emt 0:05:27]} Rc7 {[%emt 0:14:16]} 20. Rhd1 {[%emt 0:02:33]} Nd5 {[%emt 0:00:52]} 21. a3 {[%emt 0:05:14]} Nxe3+ {[%emt 0:01:57]} 22. fxe3 {[%emt 0:00:05]} Be5 {[%emt 0:02:47]} 23. b4 {[%emt 0:07:59]} Rb8 {[%emt 0:09:09]} 24. a4 {[%emt 0:06:42]} g5 {[%emt 0:03:05]} 25. Rb1 {[%emt 0:03:38]} Bd6 {[%emt 0:05:35]} 26. b5 {[%emt 0:09:45]} cxb5 {[%emt 0:00:19]} 27. axb5 {[%emt 0:00:05]} Bc5 {[%emt 0:00:31]} 28. Bc6 {[%emt 0:02:32]} Rd8 {[%emt 0:01:20]} 29. Rxd8 {[%emt 0:02:04]} Kxd8 {[%emt 0:00:01]} 30. Kd3 {[%emt 0:02:14]} Ke7 {[%emt 0:00:25]} 31. Re1 {[%emt 0:00:17]} Kf6 {[%emt 0:04:19]} 32. Kc4 {[%emt 0:02:51]} Bd6 {[%emt 0:00:54]} 33. Kd4 {[%emt 0:00:51]} Be5+ {[%emt 0:01:03]} 34. Kd3 {[%emt 0:00:06]} Bd6 {[%emt 0:01:55]} 35. c4 {[%emt 0:00:08]} Ke5 {[%emt 0:00:47] Ke4+} 1/2-1/2

[Event "36th Balaton Open A 2018"]
[Site "Balatonlelle"]
[Date "2018.06.16"]
[Round "5"]
[White "Suta, Andraz"]
[Black "Chandratreya Prachiti"]
[Result "1-0"]
[ECO "C02"]
[WhiteElo "2239"]
[BlackElo "1729"]
[Annotator "NA"]
[PlyCount "79"]
[EventDate "2018.06.12"]
[EventType "swiss"]
[EventCountry "HUN"]
[SourceTitle "playchess.com"]
[Source "ChessBase"]
[SourceQuality "1"]
[TimeControl "40/5400+30:1800+30"]

1. e4 {[%emt 0:00:05]} e6 {[%emt 0:00:37]} 2. d4 {[%emt 0:00:27]} d5 {[%emt 0:00:10]} 3. e5 {[%emt 0:00:09]} c5 {[%emt 0:00:07]} 4. c3 {[%emt 0:00:03]} Qb6 {[%emt 0:00:08]} 5. Nf3 {[%emt 0:00:06]} Nc6 {[%emt 0:00:08]} 6. a3 {[%emt 0:00:09]} Nh6 {[%emt 0:00:12]} 7. b4 {[%emt 0:04:47]} cxd4 {[%emt 0:00:22]} 8. cxd4 {[%emt 0:00:33]} Nf5 {[%emt 0:00:16]} 9. Bb2 {[%emt 0:00:39]} Bd7 {[%emt 0:01:02]} 10. g4 {[%emt 0:07:34]} Nfe7 {[%emt 0:00:39]} 11. Bc1 {[%emt 0:02:43]} h5 {[%emt 0:13:21]} 12. g5 {[%emt 0:05:04]} Nf5 {[%emt 0:04:29]} 13. Be3 {[%emt 0:00:09]} Rc8 {[%emt 0:06:00]} 14. Bh3 {[%emt 0:05:38]} Nce7 {[%emt 0:03:53]} 15. O-O {[%emt 0:01:25]} g6 {[%emt 0:06:45]} 16. Qd2 {[%emt 0:01:14]} Bg7 {[%emt 0:01:36]} 17. Nc3 {[%emt 0:05:20]} O-O {[%emt 0:01:03]} 18. Rfc1 {[%emt 0:02:03]} Rc7 {[%emt 0:03:31]} 19. Bf1 {[%emt 0:01:23]} Rfc8 {[%emt 0:02:30]} 20. Bd3 {[%emt 0:03:11]} Bf8 {[%emt 0:04:17]} 21. h4 {[%emt 0:08:12]} a6 {[%emt 0:12:22]} 22. Rab1 {[%emt 0:19:02]} Be8 {[%emt 0:05:59]} 23. Kh2 {[%emt 0:11:42]} Ng7 {[%emt 0:04:32]} 24. Kh3 {[%emt 0:02:50]} Nef5 {[%emt 0:00:43]} 25. Qb2 {[%emt 0:02:58]} Qa7 {[%emt 0:02:47]} 26. Rc2 {[%emt 0:06:20]} Kh8 {[%emt 0:02:56]} 27. Rbc1 {[%emt 0:00:25]} Qb6 {[%emt 0:00:23]} 28. Qb3 {[%emt 0:02:17]} Bc6 {[%emt 0:02:04]} 29. Qb2 {[%emt 0:02:27]} Be8 {[%emt 0:00:15]} 30. Nd2 {[%emt 0:02:51]} Bb5 {[%emt 0:05:26]} 31. Nxb5 {[%emt 0:00:43]} Rxc2 {[%emt 0:00:21]} 32. Rxc2 {[%emt 0:00:08]} Rxc2 {[%emt 0:00:06]} 33. Qxc2 {[%emt 0:00:05]} axb5 {[%emt 0:00:05]} 34. Qc8 {[%emt 0:01:25]} Kg8 {[%emt 0:00:28]} 35. Nb3 {[%emt 0:01:44]} Qa7 {[%emt 0:02:54]} 36. Bc1 {[%emt 0:01:24]} Nxd4 {[%emt 0:04:49]} 37. Nc5 {[%emt 0:00:12]} Nb3 {[%emt 0:10:01]} 38. Nd7 {[%emt 0:00:16]} Qxf2 {[%emt 0:01:13]} 39. Qxf8+ {[%emt 0:00:19]} Kh7 {[%emt 0:00:05]} 40. Nf6+ {[%emt 0:00:00]} 1-0

[Event "36th Balaton Open A 2018"]
[Site "Balatonlelle"]
[Date "2018.06.16"]
[Round "5"]
[White "Ronce, Nathan"]
[Black "Atkins, Rita"]
[Result "1/2-1/2"]
[ECO "C00"]
[WhiteElo "2210"]
[BlackElo "2071"]
[Annotator "NA"]
[PlyCount "63"]
[EventDate "2018.06.12"]
[EventType "swiss"]
[EventCountry "HUN"]
[SourceTitle "playchess.com"]
[Source "ChessBase"]
[SourceQuality "1"]
[TimeControl "40/5400+30:1800+30"]

1. e4 {[%emt 0:00:04]} e6 {[%emt 0:00:49]} 2. d4 {[%emt 0:00:07]} d5 {[%emt 0:00:05]} 3. Bd3 {[%emt 0:00:05]} c5 {[%emt 0:01:36]} 4. exd5 {[%emt 0:01:18]} exd5 {[%emt 0:00:49]} 5. Nf3 {[%emt 0:00:43]} c4 {[%emt 0:05:20]} 6. Be2 {[%emt 0:00:27]} Nf6 {[%emt 0:00:18]} 7. O-O {[%emt 0:00:16]} Be7 {[%emt 0:01:07]} 8. b3 {[%emt 0:01:51]} cxb3 {[%emt 0:03:22]} 9. axb3 {[%emt 0:01:35]} O-O {[%emt 0:00:17]} 10. c4 {[%emt 0:11:39]} Nc6 {[%emt 0:01:25]} 11. Nc3 {[%emt 0:04:06]} Bg4 {[%emt 0:06:13]} 12. Be3 {[%emt 0:03:10]} Nb4 {[%emt 0:08:22]} 13. Ne5 {[%emt 0:09:40]} Bxe2 {[%emt 0:11:31]} 14. Qxe2 {[%emt 0:01:05]} Ne4 {[%emt 0:00:45]} 15. Rfc1 {[%emt 0:05:13]} f6 {[%emt 0:07:44]} 16. Nd3 {[%emt 0:05:44]} Nxc3 {[%emt 0:02:17]} 17. Rxc3 {[%emt 0:01:11]} Re8 {[%emt 0:00:20]} 18. Rcc1 {[%emt 0:02:35]} a5 {[%emt 0:06:35]} 19. c5 {[%emt 0:09:04]} Nc6 {[%emt 0:05:26]} 20. Qf3 {[%emt 0:06:39]} Bf8 {[%emt 0:04:17]} 21. Nf4 {[%emt 0:08:42]} Re4 {[%emt 0:01:31]} 22. Ne2 {[%emt 0:00:25]} Qd7 {[%emt 0:10:42]} 23. Nc3 {[%emt 0:03:40]} Rxd4 {[%emt 0:00:49]} 24. Bxd4 {[%emt 0:00:47]} Nxd4 {[%emt 0:00:05]} 25. Qd3 {[%emt 0:03:17]} Bxc5 {[%emt 0:01:53]} 26. h3 {[%emt 0:08:06]} Rd8 {[%emt 0:00:53]} 27. Na4 {[%emt 0:00:57]} Ba7 {[%emt 0:01:59]} 28. Nc5 {[%emt 0:00:20]} Bxc5 {[%emt 0:01:18]} 29. Rxc5 {[%emt 0:00:06]} b6 {[%emt 0:00:38]} 30. Rc3 {[%emt 0:04:08]} Ne6 {[%emt 0:02:34]} 31. Rac1 {[%emt 0:02:47]} Nc5 {[%emt 0:01:22]} 32. Qd4 1/2-1/2

[Event "36th Balaton Open A 2018"]
[Site "Balatonlelle"]
[Date "2018.06.16"]
[Round "5"]
[White "Forgacs, Jozsef"]
[Black "Tancsa, Tamas"]
[Result "1/2-1/2"]
[ECO "A10"]
[WhiteElo "2199"]
[BlackElo "1965"]
[Annotator "NA"]
[PlyCount "60"]
[EventDate "2018.06.12"]
[EventType "swiss"]
[EventCountry "HUN"]
[SourceTitle "playchess.com"]
[Source "ChessBase"]
[SourceQuality "1"]
[TimeControl "40/5400+30:1800+30"]

1. c4 {[%emt 0:00:05]} d6 {[%emt 0:01:13]} 2. Nc3 {[%emt 0:00:26]} e5 {[%emt 0:00:41]} 3. g3 {[%emt 0:00:15]} Nf6 {[%emt 0:00:38]} 4. Bg2 {[%emt 0:00:11]} g6 {[%emt 0:00:38]} 5. d3 {[%emt 0:00:17]} Bg7 {[%emt 0:00:40]} 6. e4 {[%emt 0:00:20]} O-O {[%emt 0:00:37]} 7. Nge2 {[%emt 0:00:09]} Ne8 {[%emt 0:03:46]} 8. O-O {[%emt 0:05:19]} f5 {[%emt 0:00:51]} 9. exf5 {[%emt 0:06:48]} gxf5 {[%emt 0:00:28]} 10. f4 {[%emt 0:00:29]} Nc6 {[%emt 0:01:40]} 11. Rb1 {[%emt 0:04:40]} a5 {[%emt 0:10:26]} 12. a3 {[%emt 0:02:30]} Nd4 {[%emt 0:01:07]} 13. Re1 {[%emt 0:06:23]} c6 {[%emt 0:01:46]} 14. Be3 {[%emt 0:11:47]} Nc7 {[%emt 0:00:43]} 15. Bf2 {[%emt 0:03:13]} Nce6 {[%emt 0:00:57]} 16. Nxd4 {[%emt 0:00:32]} Nxd4 {[%emt 0:01:08]} 17. Ne2 {[%emt 0:01:28]} Qc7 {[%emt 0:10:25]} 18. Kh1 {[%emt 0:05:19]} Bd7 {[%emt 0:00:53]} 19. fxe5 {[%emt 0:03:43]} dxe5 {[%emt 0:00:11]} 20. Bxd4 {[%emt 0:00:18]} exd4 {[%emt 0:00:32]} 21. Nf4 {[%emt 0:00:08]} Rae8 {[%emt 0:01:19]} 22. Qd2 {[%emt 0:07:47]} Bh6 {[%emt 0:04:38]} 23. b4 {[%emt 0:01:34]} axb4 {[%emt 0:00:35]} 24. axb4 {[%emt 0:00:07]} Rxe1+ {[%emt 0:00:37]} 25. Rxe1 {[%emt 0:00:09]} Re8 {[%emt 0:00:22]} 26. Rxe8+ {[%emt 0:07:59]} Bxe8 {[%emt 0:00:00]} 27. Kg1 {[%emt 0:13:50]} Qe5 {[%emt 0:00:49]} 28. Kf2 {[%emt 0:00:18]} Bxf4 {[%emt 0:09:40]} 29. Qxf4 {[%emt 0:00:31]} Qxf4+ {[%emt 0:00:55]} 30. gxf4 {[%emt 0:00:08]} Kg7 {[%emt 0:00:22]} 1/2-1/2

[Event "36th Balaton Open A 2018"]
[Site "Balatonlelle"]
[Date "2018.06.16"]
[Round "5"]
[White "Nagy, Ervin Dr."]
[Black "Metaxasz, Vaszilisz"]
[Result "0-1"]
[ECO "B33"]
[WhiteElo "2172"]
[BlackElo "2047"]
[Annotator "NA"]
[PlyCount "48"]
[EventDate "2018.06.12"]
[EventType "swiss"]
[EventCountry "HUN"]
[SourceTitle "playchess.com"]
[Source "ChessBase"]
[SourceQuality "1"]
[TimeControl "40/5400+30:1800+30"]

1. e4 {[%emt 0:00:10]} c5 {[%emt 0:00:40]} 2. Nf3 {[%emt 0:00:19]} Nc6 {[%emt 0:00:19]} 3. d4 {[%emt 0:00:25]} cxd4 {[%emt 0:00:08]} 4. Nxd4 {[%emt 0:00:06]} Qb6 {[%emt 0:00:21]} 5. Nb3 {[%emt 0:00:32]} Nf6 {[%emt 0:00:13]} 6. Nc3 {[%emt 0:00:11]} e6 {[%emt 0:00:07]} 7. Bd3 {[%emt 0:03:30]} a6 {[%emt 0:00:18]} 8. O-O {[%emt 0:00:39]} Be7 {[%emt 0:00:49]} 9. Kh1 {[%emt 0:10:47]} O-O {[%emt 0:00:38]} 10. f4 {[%emt 0:01:15]} d6 {[%emt 0:00:12]} 11. Qf3 {[%emt 0:02:59]} Qc7 {[%emt 0:01:58]} 12. Be3 {[%emt 0:14:39]} b5 {[%emt 0:01:28]} 13. a4 {[%emt 0:00:45]} b4 {[%emt 0:02:11]} 14. Ne2 {[%emt 0:00:11]} Nd7 {[%emt 0:07:50]} 15. Qh3 {[%emt 0:04:40]} g6 {[%emt 0:06:24]} 16. Rad1 {[%emt 0:12:31]} Bf6 {[%emt 0:01:02]} 17. Bc1 {[%emt 0:01:35]} Nb6 {[%emt 0:05:33]} 18. a5 {[%emt 0:02:29]} Na4 {[%emt 0:00:13]} 19. e5 {[%emt 0:04:55]} dxe5 {[%emt 0:05:14]} 20. Be4 {[%emt 0:00:54]} Bb7 {[%emt 0:01:52]} 21. fxe5 {[%emt 0:08:09]} Bxe5 {[%emt 0:00:56]} 22. Qh4 {[%emt 0:01:53]} Nxb2 {[%emt 0:14:35]} 23. Bxb2 {[%emt 0:06:54]} Bxb2 {[%emt 0:00:08]} 24. Rd3 {[%emt 0:00:09]} f5 {[%emt 0:07:43]} 0-1

[Event "36th Balaton Open A 2018"]
[Site "Balatonlelle"]
[Date "2018.06.16"]
[Round "5"]
[White "Boguszlavszkij, Jevgenyij"]
[Black "Sardy, Peter"]
[Result "1/2-1/2"]
[ECO "B40"]
[WhiteElo "2170"]
[BlackElo "2340"]
[Annotator "NA"]
[PlyCount "28"]
[EventDate "2018.06.12"]
[EventType "swiss"]
[EventCountry "HUN"]
[SourceTitle "playchess.com"]
[Source "ChessBase"]
[SourceQuality "1"]
[TimeControl "40/5400+30:1800+30"]

1. e4 {[%emt 0:02:39]} c5 {[%emt 0:00:37]} 2. Nf3 {[%emt 0:00:09]} e6 {[%emt 0:00:07]} 3. d3 {[%emt 0:00:28]} Nc6 {[%emt 0:00:28]} 4. g3 {[%emt 0:00:07]} d5 {[%emt 0:00:29]} 5. Nbd2 {[%emt 0:00:06]} g6 {[%emt 0:00:27]} 6. Bg2 {[%emt 0:00:08]} Bg7 {[%emt 0:00:26]} 7. O-O {[%emt 0:00:07]} Nge7 {[%emt 0:00:11]} 8. Re1 {[%emt 0:00:31]} b6 {[%emt 0:02:42]} 9. Nf1 {[%emt 0:07:21]} h6 {[%emt 0:02:36]} 10. c3 {[%emt 0:01:40]} O-O {[%emt 0:07:44]} 11. h4 {[%emt 0:05:34]} a5 {[%emt 0:02:03]} 12. e5 {[%emt 0:06:43]} Ra7 {[%emt 0:08:13]} 13. d4 {[%emt 0:04:22]} Ba6 {[%emt 0:04:13]} 14. a3 {[%emt 0:01:42]} Nb8 1/2-1/2

[Event "36th Balaton Open A 2018"]
[Site "Balatonlelle"]
[Date "2018.06.16"]
[Round "5"]
[White "Gaal, Ede"]
[Black "Rabovszky, Gyorgy"]
[Result "1-0"]
[ECO "B30"]
[WhiteElo "2141"]
[BlackElo "1789"]
[Annotator "NA"]
[PlyCount "64"]
[EventDate "2018.06.12"]
[EventType "swiss"]
[EventCountry "HUN"]
[SourceTitle "playchess.com"]
[Source "ChessBase"]
[SourceQuality "1"]
[TimeControl "40/5400+30:1800+30"]

1. e4 {[%emt 0:00:07]} c5 {[%emt 0:00:41]} 2. Nf3 {[%emt 0:00:21]} Nc6 {[%emt 0:00:11]} 3. Bb5 {[%emt 0:00:13]} Na5 {[%emt 0:00:06]} 4. O-O {[%emt 0:01:20]} a6 {[%emt 0:00:04]} 5. Be2 {[%emt 0:00:20]} e6 {[%emt 0:00:18]} 6. b3 {[%emt 0:01:12]} d5 {[%emt 0:02:25]} 7. exd5 {[%emt 0:02:14]} exd5 {[%emt 0:00:25]} 8. Re1 {[%emt 0:00:26]} Be6 {[%emt 0:00:03]} 9. d4 {[%emt 0:00:34]} Nf6 {[%emt 0:00:44]} 10. c3 {[%emt 0:03:13]} c4 {[%emt 0:06:28]} 11. bxc4 {[%emt 0:03:26]} dxc4 {[%emt 0:00:31]} 12. Ng5 {[%emt 0:12:03]} Qd7 {[%emt 0:00:54]} 13. Nxe6 {[%emt 0:01:17]} fxe6 {[%emt 0:00:02]} 14. Bg4 {[%emt 0:00:55]} Nxg4 {[%emt 0:01:48]} 15. Qxg4 {[%emt 0:01:37]} O-O-O {[%emt 0:02:11]} 16. Bf4 {[%emt 0:11:05]} h5 {[%emt 0:11:54]} 17. Qxe6 {[%emt 0:01:21]} Qxe6 {[%emt 0:01:58]} 18. Rxe6 {[%emt 0:00:09]} Rd5 {[%emt 0:01:22]} 19. g3 {[%emt 0:04:02]} g5 {[%emt 0:04:07]} 20. Be5 {[%emt 0:00:42]} Rg8 {[%emt 0:01:42]} 21. Nd2 {[%emt 0:00:58]} Kd7 {[%emt 0:00:44]} 22. Rb6 {[%emt 0:00:24]} Rb5 {[%emt 0:00:32]} 23. Rxb5 {[%emt 0:01:53]} axb5 {[%emt 0:02:15]} 24. Rb1 {[%emt 0:00:21]} b4 {[%emt 0:01:24]} 25. cxb4 {[%emt 0:00:40]} c3 {[%emt 0:00:07]} 26. Ne4 {[%emt 0:01:50]} Bxb4 {[%emt 0:06:52]} 27. Nf6+ {[%emt 0:01:24]} Ke6 {[%emt 0:00:30]} 28. Nxg8 {[%emt 0:00:19]} Ba3 {[%emt 0:00:35]} 29. Re1 {[%emt 0:04:59]} Kd5 {[%emt 0:01:25]} 30. Nf6+ {[%emt 0:00:20]} Kc4 {[%emt 0:01:51]} 31. f4 {[%emt 0:02:09]} Nc6 {[%emt 0:06:14]} 32. Ne4 {[%emt 0:06:27]} Kd5 1-0